bitfinex-derivatives/quotes_ETHF0:USTF0_20250704
["timestamp","ask_amount","ask_price","bid_price","bid_amount"]
[1751641518396,0.79441,2516.5,2516.4,3.2078]
[1751641518795,2.86211,2516.5,2516.4,3.2078]
[1751641519009,49.09321,2516.5,2516.4,3.2078]
[1751641519995,49.09321,2516.5,2516.0,3.2078]
[1751641519996,0.79453,2516.1,2516.0,3.2078]
[1751641520202,37.17653,2516.1,2516.0,3.2078]
[1751641522008,0.79453,2516.1,2516.0,3.2078]
[1751641522208,48.43453,2516.1,2516.0,3.2078]
[1751641522910,0.79467,2515.7,2515.6,3.2078]
[1751641523105,37.18167,2515.7,2515.6,3.2078]
[1751641523809,1.98681,2515.6,2515.2,0.7948]
[1751641524009,0.79477,2515.4,2515.3,3.2078]
[1751641524206,37.18777,2515.4,2515.3,3.2078]
[1751641524410,36.393,2515.4,2515.3,3.2078]
[1751641524611,36.394,2515.4,2515.3,5.35149]
[1751641524812,37.18876,2515.4,2515.3,4.5567]
[1751641525310,0.79479,2515.3,2515.2,0.6455]
[1751641526609,0.79485,2515.1,2515.0,3.8716]
[1751641526808,37.17985,2515.1,2515.0,3.8716]
[1751641527006,37.17985,2515.1,2515.0,4.66648]
[1751641527306,37.17985,2515.1,2515.0,3.8716]
[1751641527909,37.17985,2515.1,2515.0,4.66648]
[1751641528106,37.17985,2515.1,2515.0,3.8716]
[1751641528411,37.17985,2515.1,2515.0,3.2078]
[1751641532011,37.17985,2515.1,2514.9,0.7949]
[1751641532012,0.79488,2515.0,2514.9,0.7949]
[1751641532306,36.385,2515.1,2514.8,0.6501]
[1751641532307,0.79491,2514.9,2514.8,0.6501]
[1751641532505,0.79494,2514.8,2514.7,3.2078]
[1751641532708,37.17994,2514.8,2514.7,3.2078]
[1751641532909,37.17994,2514.8,2514.4,3.2078]
[1751641532910,1.98749,2514.7,2514.4,3.2078]
[1751641533107,37.6806,2514.8,2514.5,0.79504]
[1751641533307,3.2078,2515.2,2514.7,3.2078]
[1751641533501,0.79494,2514.9,2514.8,0.6666]
[1751641533713,48.45094,2514.9,2514.8,0.6666]
[1751641534302,0.7949,2515.0,2514.8,1.46154]
[1751641534505,3.2078,2515.2,2515.1,0.79485]
[1751641534710,0.79486,2515.1,2515.0,0.79487]
[1751641534914,0.79486,2515.1,2515.0,2.18957]
[1751641535417,0.79486,2515.1,2515.0,1.3947]
[1751641535812,37.18986,2515.1,2515.0,1.3947]
[1751641536610,48.45286,2515.1,2515.0,2.18958]
[1751641536809,48.45286,2515.1,2515.0,1.3947]
[1751641537009,0.79486,2515.1,2515.0,1.3947]
[1751641537210,48.44586,2515.1,2515.0,1.3947]
[1751641537417,0.79488,2515.0,2514.9,0.6637]
[1751641539914,0.79488,2515.0,2514.9,1.45861]
[1751641540217,0.79488,2515.0,2514.9,0.6637]
[1751641540717,48.44288,2515.0,2514.9,1.45861]
[1751641541818,48.44288,2515.0,2514.9,0.6637]
[1751641542117,48.44288,2515.0,2514.9,1.45861]
[1751641542317,0.79488,2515.0,2514.9,0.6637]
[1751641542518,48.43088,2515.0,2514.9,0.6637]
[1751641542717,0.79488,2515.0,2514.9,0.6637]
[1751641543011,48.42888,2515.0,2514.9,0.6637]
[1751641543212,0.79494,2514.8,2514.7,3.2078]
[1751641543409,37.16494,2514.8,2514.7,3.2078]
[1751641544820,0.79504,2514.5,2514.4,1.3711]
[1751641545122,36.375,2514.5,2514.4,2.16617]
[1751641545416,37.17004,2514.5,2514.4,3.53147]
[1751641545618,0.79504,2514.5,2514.4,3.53147]
[1751641545919,48.43504,2514.5,2514.4,3.53147]
[1751641546119,1.98738,2514.8,2514.4,2.7364]
[1751641546420,0.79503,2514.6,2514.4,2.7364]
[1751641546619,0.79503,2514.6,2514.5,0.79503]
[1751641546821,48.43603,2514.6,2514.5,2.09443]
[1751641547214,0.79503,2514.6,2514.5,1.2994]
[1751641547419,48.43403,2514.6,2514.5,1.2994]
[1751641547916,48.43203,2514.6,2514.5,1.2994]
[1751641548524,0.79504,2514.5,2514.4,1.3711]
[1751641549322,0.79504,2514.5,2514.4,0.6592]
[1751641549721,0.79507,2514.4,2514.3,3.2078]
[1751641550922,1.9878,2514.3,2513.6,3.2078]
[1751641551221,0.79529,2513.7,2513.6,3.2078]
[1751641551422,48.49229,2513.7,2513.6,3.2078]
[1751641551619,48.51929,2513.7,2513.6,3.2078]
[1751641551818,48.51529,2513.7,2513.6,3.2078]
[1751641552017,0.79529,2513.7,2513.6,3.2078]
[1751641552220,48.51429,2513.7,2513.6,3.2078]
[1751641552524,40.8,2514.0,2513.6,10.19608]
[1751641552716,5.1955,2514.4,2514.0,0.79519]
[1751641552918,47.731,2514.3,2514.1,0.6835]
[1751641553118,0.79513,2514.2,2514.1,0.6835]
[1751641553324,41.59513,2514.2,2514.1,0.6835]
[1751641553820,89.32213,2514.2,2514.1,0.6835]
[1751641554013,89.32213,2514.2,2513.7,1.333]
[1751641554219,0.79529,2513.7,2513.6,3.2078]
[1751641554519,37.25129,2513.7,2513.6,3.2078]
[1751641554922,48.55729,2513.7,2513.6,3.2078]
[1751641555326,3.2078,2514.1,2513.6,3.2078]
[1751641555628,0.7952,2514.0,2513.9,0.79523]
[1751641555823,37.2792,2514.0,2513.9,0.79523]
[1751641556327,36.484,2514.0,2513.9,0.79523]
[1751641556623,37.2792,2514.0,2513.9,0.79523]
[1751641556823,0.7952,2514.0,2513.9,2.13363]
[1751641557020,48.5702,2514.0,2513.9,1.3384]
[1751641557523,0.7952,2514.0,2513.9,1.3384]
[1751641557720,48.5732,2514.0,2513.9,1.3384]
[1751641558223,48.5692,2514.0,2513.9,1.3384]
[1751641558424,48.5692,2514.0,2513.9,2.13363]
[1751641558724,48.5692,2514.0,2513.9,1.3384]
[1751641559227,0.79523,2513.9,2513.8,1.44666]
[1751641559525,0.79525,2513.9,2513.6,3.2078]
[1751641559722,37.28526,2513.8,2513.7,0.79527]
[1751641560027,0.79529,2513.7,2513.6,3.2078]
[1751641560629,0.79529,2513.7,2513.6,4.00312]
[1751641560817,48.57729,2513.7,2513.6,4.00312]
[1751641561021,48.57729,2513.7,2513.6,3.2078]
[1751641562522,1.98835,2513.6,2513.3,3.2078]
[1751641562726,0.79539,2513.4,2513.3,4.00322]
[1751641562924,47.779,2513.4,2513.3,3.2078]
[1751641563125,47.779,2513.4,2513.3,4.00322]
[1751641563928,48.57439,2513.4,2513.3,4.00322]
[1751641564228,47.779,2513.4,2513.3,4.00322]
[1751641564427,0.79531,2513.7,2513.6,0.79531]
[1751641564628,48.59031,2513.7,2513.6,3.2078]
[1751641564829,48.59431,2513.7,2513.6,3.2078]
[1751641565530,48.59331,2513.7,2513.6,4.00312]
[1751641565830,48.58831,2513.7,2513.6,4.00312]
[1751641567727,0.7952,2514.0,2513.9,0.79522]
[1751641567925,47.795,2514.0,2513.7,1.961]
[1751641568229,5.19578,2514.1,2513.5,0.7069]
[1751641568429,0.79529,2513.7,2513.6,2.0063]
[1751641568630,37.31329,2513.7,2513.6,2.0063]
[1751641568829,0.79532,2513.6,2513.5,3.9147]
[1751641571027,0.79532,2513.6,2513.5,0.7069]
[1751641571329,48.59132,2513.6,2513.5,4.71002]
[1751641571633,48.59132,2513.6,2513.5,3.9147]
[1751641572525,48.59132,2513.6,2513.5,3.2078]
[1751641572723,0.79542,2513.3,2513.2,4.5646]
[1751641572928,37.31042,2513.3,2513.2,4.5646]
[1751641574326,37.31042,2513.3,2513.2,5.36005]
[1751641574327,0.79542,2513.3,2513.2,5.36005]
[1751641574532,48.59242,2513.3,2513.2,5.36005]
[1751641574934,48.59342,2513.3,2513.2,5.36005]
[1751641575527,48.59342,2513.3,2513.2,4.5646]
[1751641575731,0.79542,2513.3,2513.2,4.5646]
[1751641576037,48.58642,2513.3,2513.2,4.5646]
[1751641576237,0.79542,2513.3,2513.2,4.5646]
[1751641576532,48.58642,2513.3,2513.2,4.5646]
[1751641577330,48.58642,2513.3,2513.2,3.8651]
[1751641578336,48.58642,2513.3,2513.2,0.6573]
[1751641579637,0.79542,2513.3,2513.2,0.6573]
[1751641580036,48.61042,2513.3,2513.2,3.8651]
[1751641580437,48.60942,2513.3,2513.2,3.8651]
[1751641580637,48.60942,2513.3,2513.2,0.6573]
[1751641581138,0.79542,2513.3,2513.2,0.6573]
[1751641581338,48.61142,2513.3,2513.2,0.6573]
[1751641581538,48.61142,2513.3,2513.2,1.9827]
[1751641581937,48.61142,2513.3,2513.2,0.6573]
[1751641582439,48.60542,2513.3,2513.2,0.6573]
[1751641582741,0.79542,2513.3,2513.2,0.6573]
[1751641582943,48.60842,2513.3,2513.2,0.6573]
[1751641583138,0.79542,2513.3,2513.2,0.6573]
[1751641583334,48.60742,2513.3,2513.2,0.6573]
[1751641586245,47.812,2513.3,2513.0,0.7955]
[1751641586443,0.79551,2513.1,2513.0,1.4698]
[1751641586642,37.28751,2513.1,2513.0,0.6743]
[1751641588941,0.79551,2513.1,2513.0,0.6743]
[1751641589146,48.57851,2513.1,2513.0,0.6743]
[1751641590943,0.79551,2513.0,2512.9,3.2078]
[1751641594239,1.98885,2513.0,2512.6,3.2078]
[1751641594444,0.79561,2512.7,2512.6,3.2078]
[1751641594749,48.56761,2512.7,2512.6,3.2078]
[1751641596251,0.79567,2512.5,2512.4,0.6791]
[1751641596543,37.25767,2512.5,2512.4,0.6791]
[1751641596749,36.462,2512.5,2512.2,3.2078]
[1751641596950,5.19702,2512.5,2511.7,3.16493486]
[1751641597250,0.79561,2512.7,2512.4,4.0035]
[1751641597449,48.045,2512.6,2512.4,4.00349]
[1751641597746,3.2078,2513.2,2512.5,2.7428]
[1751641598047,1.2755,2513.3,2513.0,3.2078]
[1751641598345,0.79548,2513.1,2513.0,3.2078]
[1751641598652,0.79545,2513.2,2513.1,0.6624]
[1751641598844,0.79545,2513.2,2512.7,3.2078]
[1751641598845,50.13363,2513.2,2512.7,3.2078]
[1751641599044,50.13363,2513.2,2512.6,4.5539]
[1751641599045,0.79561,2512.7,2512.6,4.5539]
[1751641599249,37.64161,2512.7,2512.6,3.2078]
[1751641599645,0.79564,2512.6,2512.5,0.6943]
[1751641599950,12.10764,2512.6,2512.5,0.6943]
[1751641600551,0.79573,2512.3,2512.2,3.2078]
[1751641600752,37.72973,2512.3,2512.2,3.2078]
[1751641607449,0.79573,2512.3,2512.2,3.2078]
[1751641607655,49.01573,2512.3,2512.2,3.2078]
[1751641609054,0.79573,2512.3,2512.2,3.2078]
[1751641609256,49.11373,2512.3,2512.2,3.2078]
[1751641609548,49.10073,2512.3,2512.2,3.2078]
[1751641611650,0.79573,2512.3,2512.2,3.2078]
[1751641611856,49.07973,2512.3,2512.2,3.2078]
[1751641612857,0.79573,2512.3,2512.2,3.2078]
[1751641613046,49.06873,2512.3,2512.2,3.2078]
[1751641613658,89.86873,2512.3,2512.2,3.2078]
[1751641616362,89.84273,2512.3,2512.2,3.2078]
[1751641619667,41.59573,2512.3,2512.2,3.2078]
[1751641619862,49.01773,2512.3,2512.2,3.2078]
[1751641620262,0.79576,2512.2,2512.1,0.6748]
[1751641620664,0.79583,2512.0,2511.9,0.6877]
[1751641620966,37.58283,2512.0,2511.9,0.6877]
[1751641621362,0.79592,2511.7,2511.6,2.0922]
[1751641621665,49.00892,2511.7,2511.6,2.0922]
[1751641621861,49.00192,2511.7,2511.6,2.0922]
[1751641622168,0.79592,2511.7,2511.6,2.0922]
[1751641622364,48.99992,2511.7,2511.6,2.0922]
[1751641622766,48.99292,2511.7,2511.6,2.0922]
[1751641622962,0.79592,2511.7,2511.6,2.0922]
[1751641623159,1.98973,2511.8,2511.5,3.2078]
[1751641623359,0.79595,2511.6,2511.5,3.2078]
[1751641624372,36.765,2511.6,2511.5,4.00378]
[1751641624561,37.56095,2511.6,2511.5,4.00378]
[1751641625070,37.56095,2511.6,2511.5,3.2078]
[1751641625472,37.56095,2511.6,2511.5,4.00378]
[1751641626070,37.56095,2511.6,2511.5,3.2078]
[1751641627373,37.56095,2511.6,2511.5,4.00378]
[1751641627676,36.765,2511.6,2511.5,4.00378]
[1751641628182,36.732,2511.9,2511.8,0.79586]
[1751641628372,0.79591,2511.9,2511.8,4.00366]
[1751641628574,37.52591,2511.9,2511.8,3.2078]
[1751641628977,37.52591,2511.9,2511.8,2.14189]
[1751641629178,37.52591,2511.9,2511.8,5.34969]
[1751641629376,2.36234748,2513.1,2513.0,0.79551]
[1751641629577,0.99856332,2513.2,2513.1,0.79548]
[1751641629784,5.03034748,2514.0,2513.0,3.2078]
[1751641630076,0.79535,2513.5,2513.4,0.79537]
[1751641630271,0.79545,2513.2,2513.1,0.6663]
[1751641630472,0.79554,2512.9,2512.8,6.37273486]
[1751641630681,0.79554,2512.9,2512.8,3.8741]
[1751641631082,0.79554,2512.9,2512.8,7.03903486]
[1751641631584,0.79554,2512.9,2512.8,3.8741]
[1751641632180,0.79567,2512.5,2512.4,7.16843486]
[1751641632380,0.79567,2512.5,2512.4,4.0035]
[1751641632573,0.79567,2512.5,2512.4,3.2078]
[1751641632977,0.79567,2512.5,2512.4,4.0035]
[1751641633379,0.79567,2512.5,2512.4,3.2078]
[1751641633581,38.9079,2512.9,2512.2,2.15153]
[1751641633582,0.79573,2512.3,2512.2,1.3558]
[1751641634083,0.79573,2512.3,2512.2,2.15155]
[1751641634382,0.79571,2512.4,2512.3,0.79571]
[1751641634681,0.7957,2512.4,2512.3,3.2078]
[1751641636387,0.7957,2512.4,2512.3,4.4942]
[1751641637488,0.7957,2512.4,2512.3,3.2078]
[1751641638184,0.79573,2512.3,2512.2,0.6874]
[1751641639383,37.71773,2512.3,2512.2,0.6874]
[1751641639687,37.71773,2512.3,2512.2,1.48316]
[1751641639888,37.71773,2512.3,2512.2,0.6874]
[1751641640081,0.79571,2512.4,2512.2,0.6874]
[1751641640385,3.2078,2512.8,2512.2,0.6874]
[1751641640386,37.70668,2512.5,2512.4,0.79568]
[1751641640787,0.79568,2512.5,2512.4,0.79568]
[1751641641183,0.79568,2512.5,2512.4,0.6701]
[1751641641384,36.913,2512.6,2512.4,4.67358]
[1751641641582,0.79567,2512.5,2512.4,5.3048]
[1751641641782,0.79567,2512.5,2512.4,6.1005]
[1751641641984,37.70865,2512.6,2512.5,0.79567]
[1751641642383,0.79567,2512.5,2512.4,6.10048]
[1751641642586,37.70865,2512.6,2512.5,0.79567]
[1751641642889,0.79558,2512.9,2512.8,0.79555]
[1751641643186,37.71258,2512.9,2512.8,4.00335]
[1751641643380,2.70003,2513.2,2512.9,0.79552]
[1751641643579,38.91171,2513.1,2512.8,3.2078]
[1751641643784,0.79554,2512.9,2512.8,3.2078]
[1751641644291,0.79554,2512.9,2512.8,4.00337]
[1751641644487,0.79554,2512.9,2512.8,3.2078]
[1751641644691,0.79554,2512.9,2512.8,4.00337]
[1751641644891,37.70554,2513.0,2512.9,0.79554]
[1751641645288,0.79554,2513.0,2512.9,0.79554]
[1751641645593,36.905,2513.0,2512.9,2.77734]
[1751641645890,37.70051,2513.0,2512.9,2.77734]
[1751641646090,0.79551,2513.0,2512.9,2.77734]
[1751641646496,57.321,2513.3,2512.9,1.9818]
[1751641646686,58.11645,2513.3,2513.1,3.2078]
[1751641646890,37.68845,2513.2,2513.1,3.2078]
[1751641647084,37.68845,2513.2,2513.1,4.00328]
[1751641647487,0.79545,2513.2,2513.1,4.00328]
[1751641647691,37.67745,2513.2,2513.1,4.00328]
[1751641648089,57.321,2513.3,2513.2,0.79545]
[1751641648291,0.7954,2513.5,2513.4,0.79536]
[1751641648588,0.79531,2513.7,2513.6,0.79527]
[1751641648787,12.23521,2514.0,2513.9,0.79522]
[1751641648990,12.23521,2514.0,2513.5,3.31284]
[1751641648991,0.79516,2514.2,2514.1,0.79513]
[1751641649297,37.69616,2514.2,2514.1,0.79513]
[1751641649488,0.79516,2514.2,2514.1,0.79513]
[1751641649689,0.79522,2514.0,2513.9,0.7952]
[1751641650491,0.79522,2513.9,2513.8,1.3265]
[1751641650691,0.79522,2513.9,2513.5,2.11983]
[1751641650692,0.79532,2513.6,2513.5,2.11983]
[1751641650994,0.79532,2513.6,2513.5,2.11984]
[1751641651187,0.79532,2513.6,2513.5,3.53894]
[1751641651591,0.7074,2514.0,2513.5,2.7436]
[1751641651790,0.79528,2513.8,2513.5,2.7436]
[1751641651995,0.79532,2513.7,2513.6,0.7953]
[1751641652196,0.79532,2513.7,2513.6,4.0031]
[1751641652892,1.98788,2514.2,2513.6,4.594]
[1751641653191,0.79529,2513.7,2513.6,3.2078]
[1751641653788,0.79529,2513.7,2513.6,4.00312]
[1751641654399,0.79528,2513.8,2513.7,0.79525]
[1751641654596,0.79527,2513.9,2513.8,0.79523]
[1751641654794,0.79526,2513.8,2513.7,2.18147]
[1751641654996,0.7952,2514.1,2514.0,0.79518]
[1751641655197,0.79516,2514.1,2514.0,3.2078]
[1751641655397,0.79516,2514.1,2514.0,4.00299]
[1751641655598,0.79515,2514.2,2514.1,0.79513]
[1751641655793,0.79515,2514.2,2514.1,2.79533]
[1751641656097,0.79515,2514.2,2514.1,2.6547]
[1751641656295,0.79515,2514.2,2514.1,1.3462]
[1751641656497,0.79515,2514.2,2514.1,0.6545]
[1751641656995,0.79516,2514.1,2514.0,3.2078]
[1751641657195,0.79516,2514.1,2514.0,4.00299]
[1751641658500,0.79515,2514.2,2514.1,0.79513]
[1751641658799,0.79516,2514.1,2514.0,4.00297]
[1751641661797,0.79516,2514.1,2514.0,3.2078]
[1751641662901,37.65516,2514.1,2514.0,3.2078]
[1751641664496,0.79516,2514.1,2514.0,4.00299]
[1751641664803,37.63916,2514.1,2514.0,4.00299]
[1751641665193,36.844,2514.1,2514.0,4.00299]
[1751641665394,0.79511,2514.4,2514.3,0.79507]
[1751641665599,37.63706,2514.5,2514.4,0.79504]
[1751641665793,0.79506,2514.5,2514.4,1.45514]
[1751641666004,0.79506,2514.5,2514.4,3.55384]
[1751641666306,13.42114,2515.1,2514.5,1.98759]
[1751641666503,13.42114,2515.1,2514.4,9.74647]
[1751641666504,0.79486,2515.1,2514.8,3.2078]
[1751641666798,0.79485,2515.2,2515.1,0.79482]
[1751641666998,0.79485,2515.2,2515.1,3.2078]
[1751641667203,0.79488,2515.0,2514.9,0.6845]
[1751641667403,0.79494,2514.8,2514.7,3.2078]
[1751641667802,0.79493,2514.9,2514.7,3.2078]
[1751641667999,0.79494,2514.9,2514.8,0.79493]
[1751641668198,0.79494,2514.9,2514.7,3.2078]
[1751641668199,0.7949,2515.0,2514.9,0.79489]
[1751641668506,0.7949,2515.0,2514.9,0.79491]
[1751641668899,0.79491,2514.9,2514.8,2.10182]
[1751641669403,0.79491,2514.9,2514.8,1.3069]
[1751641669609,0.79491,2514.9,2514.8,2.10184]
[1751641669813,0.79491,2514.9,2514.8,1.3069]
[1751641670805,0.79494,2514.8,2514.7,3.2078]
[1751641671199,37.63594,2514.8,2514.7,3.2078]
[1751641671395,1.98756,2514.6,2514.3,3.2078]
[1751641671603,0.79507,2514.4,2514.3,3.2078]
[1751641677906,37.64507,2514.4,2514.3,3.2078]
[1751641678605,38.34347,2514.4,2514.3,3.2078]
[1751641679113,37.63007,2514.4,2514.3,3.2078]
[1751641680108,43.82273,2514.4,2513.7,3.9048]
[1751641680305,0.79526,2513.8,2513.7,3.9048]
[1751641681907,0.79526,2513.8,2513.7,3.2078]
[1751641684108,37.61526,2513.8,2513.7,3.2078]
[1751641684507,37.61026,2513.8,2513.7,3.2078]
[1751641684915,0.79526,2513.8,2513.7,3.2078]
[1751641685111,37.60326,2513.8,2513.7,3.2078]
[1751641685306,0.79526,2513.8,2513.7,4.00309]
[1751641685512,4.29017393,2514.4,2513.7,4.00309]
[1751641685513,3.2078,2514.6,2514.0,1.98793]
[1751641685810,0.795,2514.6,2514.5,3.2078]
[1751641686010,37.622,2514.6,2514.5,3.2078]
[1751641686613,37.624,2514.6,2514.5,3.2078]
[1751641687615,0.7951,2514.3,2514.2,0.6577]
[1751641690414,0.79513,2514.2,2514.1,3.9183]
[1751641691319,37.58913,2514.2,2514.1,3.2078]
[1751641691513,0.79519,2514.0,2513.9,1.47391]
[1751641691920,0.79519,2514.0,2513.9,0.6787]
[1751641692216,0.79519,2514.0,2513.9,1.47392]
[1751641692817,0.79519,2514.0,2513.9,2.87152]
[1751641694020,0.79519,2514.1,2514.0,0.79517]
[1751641694318,0.79519,2514.1,2514.0,1.3976]
[1751641694817,37.58219,2514.1,2514.0,2.19279]
[1751641695220,36.791,2514.1,2514.0,1.3976]
[1751641695418,37.58616,2514.1,2514.0,2.19277]
[1751641698627,0.79519,2514.0,2513.9,1.47391]
[1751641700325,0.79519,2514.0,2513.9,0.6787]
[1751641701526,0.79519,2514.0,2513.9,1.47392]
[1751641701724,0.79519,2514.0,2513.9,0.6787]
[1751641702521,0.79522,2513.9,2513.8,3.2078]
[1751641703527,2.17732,2513.9,2513.8,3.2078]
[1751641704019,0.79522,2513.9,2513.8,3.2078]
[1751641704227,37.54022,2513.9,2513.8,3.2078]
[1751641704923,0.79529,2513.7,2513.6,0.6682]
[1751641705723,0.79529,2513.7,2513.6,1.46352]
[1751641705927,0.79529,2513.7,2513.6,0.6682]
[1751641708521,0.79532,2513.6,2513.5,3.2078]
[1751641708717,37.51632,2513.6,2513.5,3.2078]
[1751641709627,37.51632,2513.6,2513.5,4.00315]
[1751641709830,37.51632,2513.6,2513.5,4.6001]
[1751641710330,37.51632,2513.6,2513.5,3.2078]
[1751641712527,38.87882,2513.6,2513.5,3.2078]
[1751641712920,0.79541,2513.3,2513.2,0.6619]
[1751641713120,37.49241,2513.3,2513.2,0.6619]
[1751641713719,37.49241,2513.3,2513.1,3.2078]
[1751641713720,0.79545,2513.2,2513.1,3.2078]
[1751641715627,2.19415,2513.2,2513.1,3.2078]
[1751641715933,0.79554,2512.9,2512.8,3.2078]
[1751641716120,36.691,2512.9,2512.8,4.00337]
[1751641716326,37.48654,2512.9,2512.8,4.00337]
[1751641717131,37.48654,2512.9,2512.8,3.2078]
[1751641717834,0.79554,2512.9,2512.8,3.2078]
[1751641718131,37.53854,2512.9,2512.8,3.2078]
[1751641718722,38.20414,2512.9,2512.8,3.2078]
[1751641719834,0.79564,2512.6,2512.5,0.6896]
[1751641720022,37.53764,2512.6,2512.5,0.6896]
[1751641720830,0.79567,2512.5,2512.4,3.2078]
[1751641721729,1.47687,2512.5,2512.4,3.2078]
[1751641722528,48.93967,2512.5,2512.4,3.2078]
[1751641723334,50.28377,2512.5,2512.4,3.2078]
[1751641723533,50.94567,2512.5,2512.4,3.2078]
[1751641723734,0.79579,2512.1,2512.0,3.2078]
[1751641723928,37.52979,2512.1,2512.0,3.2078]
[1751641726830,89.75579,2512.1,2512.0,3.2078]
[1751641727233,48.95579,2512.1,2512.0,3.2078]
[1751641729030,50.35789,2512.1,2512.0,3.2078]
[1751641729432,54.5621,2512.1,2511.6,3.2078]
[1751641729636,0.79592,2511.7,2511.6,3.2078]
[1751641729934,37.57792,2511.7,2511.6,3.2078]
[1751641731626,0.79605,2511.3,2511.2,3.8964]
[1751641731832,36.769,2511.3,2511.2,3.8964]
[1751641732031,36.769,2511.3,2511.2,4.69248]
[1751641732238,0.79603,2511.4,2511.3,0.79602]
[1751641732440,0.79603,2511.4,2511.3,2.10492]
[1751641732944,36.775,2511.5,2511.3,1.3089]
[1751641733236,5.19727,2512.2,2511.4,4.01222]
[1751641733434,0.79586,2511.9,2511.8,3.2078]
[1751641733630,0.79586,2511.9,2511.8,5.31259]
[1751641733832,12.19185,2512.0,2511.9,0.79586]
[1751641734033,11.396,2512.2,2511.8,5.1975]
[1751641734237,58.10671,2512.4,2512.3,0.79573]
[1751641734436,94.88971,2512.4,2512.3,0.79573]
[1751641734632,11.396,2512.7,2512.2,0.7133]
[1751641734840,37.58364,2512.6,2512.5,0.79564]
[1751641735141,37.58364,2512.6,2512.5,3.2078]
[1751641735640,0.79573,2512.3,2512.2,0.7133]
[1751641735838,37.59673,2512.3,2512.2,0.7133]
[1751641737652,0.79579,2512.1,2512.0,4.00363]
[1751641738152,37.59677,2512.3,2512.2,0.79576]
[1751641738348,0.79578,2512.2,2512.1,0.79577]
[1751641738543,0.79574,2512.4,2512.3,0.79572]
[1751641738848,37.59174,2512.4,2512.3,4.00352]
[1751641739349,11.396,2512.5,2512.3,4.00352]
[1751641739350,0.79569,2512.5,2512.4,0.79567]
[1751641739552,12.19161,2512.7,2512.6,0.79564]
[1751641739753,48.98061,2512.7,2512.6,4.00344]
[1751641740252,12.19161,2512.7,2512.6,4.00344]
[1751641740453,48.98761,2512.7,2512.6,4.00344]
[1751641741449,3.2078,2513.7,2512.6,8.2078]
[1751641741649,0.99836896,2513.6,2513.5,0.79535]
[1751641741857,2.36234748,2514.6,2513.5,3.2078]
[1751641742153,0.795,2514.6,2514.5,3.2078]
[1751641742354,0.795,2514.6,2513.3,14.06807]
[1751641742355,37.8352515,2514.6,2514.4,3.2078]
[1751641742554,1.7932815,2514.5,2514.4,3.2078]
[1751641742848,1.7932815,2514.5,2514.4,4.00287]
[1751641742849,0.9982515,2514.5,2514.4,4.00287]
[1751641743058,0.9982515,2514.5,2514.4,3.2078]
[1751641743059,0.79503,2514.5,2514.4,3.2078]
[1751641743254,37.62003,2514.5,2514.4,3.2078]
[1751641743852,0.79513,2514.2,2514.1,3.2078]
[1751641744155,37.62413,2514.2,2514.1,3.2078]
[1751641746652,3.9154,2514.7,2514.1,3.2078]
[1751641746851,0.795,2514.6,2514.5,3.2078]
[1751641747253,0.79506,2514.5,2514.4,3.2078]
[1751641747553,0.79503,2514.5,2514.4,3.2078]
[1751641747755,0.79515,2514.2,2514.0,3.2078]
[1751641747958,0.79516,2514.1,2514.0,3.2078]
[1751641748152,0.79515,2514.2,2514.0,3.2078]
[1751641748348,0.79516,2514.1,2514.0,4.5244]
[1751641749551,0.79516,2514.1,2514.0,3.2078]
[1751641750148,0.79529,2513.7,2513.6,3.2078]
[1751641750856,0.79529,2513.7,2513.6,4.4972]
[1751641751558,0.79529,2513.7,2513.6,3.2078]
[1751641752057,0.79529,2513.7,2513.6,4.4972]
[1751641752460,3.2078,2514.8,2514.1,0.79514]
[1751641752659,0.79516,2514.2,2514.1,4.00294]
[1751641752955,0.79516,2514.2,2514.1,3.2078]
[1751641753157,0.79511,2514.3,2514.2,0.7951]
[1751641753352,0.79511,2514.3,2514.2,2.1098]
[1751641753547,0.79511,2514.3,2514.2,2.021]
[1751641754060,0.79511,2514.3,2514.2,0.7063]
[1751641755852,5.19519,2514.8,2514.2,0.7063]
[1751641756162,0.7951,2514.3,2514.2,0.7063]
[1751641756363,37.6611,2514.3,2514.2,0.7063]
[1751641756564,0.79516,2514.1,2514.0,4.00298]
[1751641756764,0.79516,2514.1,2514.0,3.2078]
[1751641757358,0.79516,2514.1,2513.9,1.45722]
[1751641757359,0.79519,2514.0,2513.9,0.662]
[1751641757556,0.79535,2513.5,2513.4,3.905]
[1751641757756,5.19565,2514.2,2513.4,3.905]
[1751641757757,37.68831,2513.7,2513.4,3.905]
[1751641758064,37.68831,2513.7,2513.6,0.7953]
[1751641758259,37.68831,2513.7,2513.4,5.3038]
[1751641758260,0.79535,2513.5,2513.4,5.3038]
[1751641758462,0.79535,2513.5,2513.4,6.09916]
[1751641758662,38.88124,2513.7,2513.5,0.79532]
[1751641758663,0.79534,2513.6,2513.5,0.79532]
[1751641758872,0.79531,2513.7,2513.6,0.79529]
[1751641759071,37.70131,2513.7,2513.6,0.79529]
[1751641759567,36.906,2513.7,2513.4,5.3038]
[1751641759756,0.79535,2513.5,2513.4,6.09915]
[1751641760060,0.79535,2513.5,2513.4,4.70035]
[1751641760554,0.79535,2513.5,2513.4,3.905]
[1751641760766,0.79535,2513.5,2513.4,3.2078]
[1751641762366,37.69035,2513.5,2513.4,3.2078]